bitfinex/quotes_SOLUSD_20251226
["timestamp","ask_amount","ask_price","bid_price","bid_amount"]
[1766770303060,10.49888208,122.21,122.16,11.15888208]
[1766770303362,10.43767296,122.2,122.16,0.66]
[1766770303563,10.43767296,122.2,122.16,11.15888208]
[1766770303756,20.93655504,122.2,122.16,0.66]
[1766770304153,21.63655504,122.2,122.16,0.66]
[1766770304469,0.7,122.19,122.15,10.49888208]
[1766770304670,0.7,122.19,122.15,11.18888208]
[1766770305043,11.19888208,122.19,122.15,0.69]
[1766770305346,0.7,122.19,122.15,11.18888208]
[1766770306254,21.63655504,122.2,122.16,0.69]
[1766770307162,0.7,122.19,122.15,11.18888208]
[1766770307759,10.49888208,122.19,122.13,9.00656964]
[1766770307971,0.7,122.18,122.14,10.49888208]
[1766770308148,0.7,122.18,122.14,0.69]
[1766770308471,0.7,122.18,122.14,11.18888208]
[1766770309963,0.7,122.18,122.14,4.46013374]
[1766770310667,0.7,122.18,122.14,0.69]
[1766770310874,0.7,122.18,122.14,4.46013374]
[1766770311346,0.7,122.18,122.15,0.69]
[1766770312056,0.7,122.18,122.13,12.77634997]
[1766770312256,0.7,122.17,122.13,4.46013374]
[1766770312973,4.47013374,122.19,122.15,0.69]
[1766770313560,4.47013374,122.18,122.13,4.46013374]
[1766770314772,0.7,122.17,122.13,4.46013374]
[1766770316188,0.7,122.17,122.13,0.69]
[1766770316384,0.7,122.17,122.13,4.46013374]
[1766770316583,0.7,122.17,122.14,0.69]
[1766770318594,3.11326926,122.17,122.13,8.87787985]
[1766770318894,0.7,122.17,122.13,3.10326926]
[1766770319875,0.7,122.17,122.13,11.29124711]
[1766770320287,0.7,122.18,122.14,0.69]
[1766770320491,0.7,122.18,122.14,3.10326926]
[1766770321270,0.7,122.18,122.14,0.69]
[1766770321981,0.7,122.18,122.14,11.29026487]
[1766770323687,10.43767296,122.2,122.14,10.60026487]
[1766770323993,0.7,122.19,122.16,0.69]
[1766770325286,0.7,122.19,122.15,10.59949325]
[1766770325484,0.7,122.19,122.15,11.28949325]
[1766770325993,2.41326926,122.19,122.14,10.60033747]
[1766770326192,0.7,122.18,122.14,11.29033747]
[1766770326775,0.7,122.18,122.14,10.60033747]
[1766770326971,0.7,122.18,122.15,0.69]
[1766770327892,2.41326926,122.18,122.13,12.10977008]
[1766770328095,0.7,122.17,122.13,3.10326926]
[1766770328563,3.11326926,122.17,122.13,0.69]
[1766770329187,0.7,122.17,122.14,0.69]
[1766770331593,0.7,122.19,122.15,0.69]
[1766770332613,11.13767296,122.22,122.18,3.10326926]
[1766770332780,0.7,122.22,122.18,3.10326926]
[1766770333190,3.11326926,122.22,122.18,0.69]
[1766770333389,2.41326926,122.22,122.18,0.69]
[1766770333592,0.7,122.21,122.18,0.69]
[1766770335578,0.71,122.2,122.16,0.69]
[1766770335779,0.71,122.2,122.16,3.10326926]
[1766770336496,0.71,122.2,122.17,0.69]
[1766770337397,25.43767296,122.23,122.18,3.10326926]
[1766770337398,0.71,122.22,122.18,3.10326926]
[1766770337581,0.71,122.21,122.18,0.69]
[1766770337981,0.71,122.21,122.17,11.28846925]
[1766770338504,0.71,122.2,122.15,15.77866557]
[1766770338693,0.71,122.2,122.16,3.10326926]
[1766770338893,0.71,122.2,122.16,0.69]
[1766770339194,0.71,122.2,122.17,2.41326926]
[1766770339597,0.71,122.2,122.16,11.28912297]
[1766770339784,0.71,122.2,122.17,2.41326926]
[1766770339987,0.71,122.2,122.16,8.87585371]
[1766770339988,0.71,122.2,122.16,11.28912297]
[1766770340397,0.71,122.21,122.17,3.10326926]
[1766770341210,3.12326926,122.21,122.17,0.69]
[1766770342106,0.71,122.21,122.18,0.69]
[1766770343212,0.71,122.2,122.17,0.69]
[1766770344016,0.71,122.19,122.16,8.8757232]
[1766770344510,0.71,122.2,122.16,11.28899246]
[1766770345098,0.71,122.2,122.16,8.8757232]
[1766770345303,0.71,122.2,122.17,0.69]
[1766770345814,0.71,122.2,122.16,11.28899246]
[1766770349618,0.71,122.2,122.17,0.69]
[1766770353930,0.71,122.21,122.18,0.69]
[1766770354310,0.71,122.2,122.16,8.87570975]
[1766770354504,0.71,122.2,122.17,0.69]
[1766770355433,0.71,122.2,122.16,3.10326926]
[1766770356222,0.71,122.19,122.15,14.96]
[1766770356446,0.71,122.19,122.14,10.43767296]
[1766770356607,0.71,122.15,122.11,9.07883763]
[1766770356804,0.71,122.15,122.12,0.69]
[1766770357032,0.71,122.15,122.12,11.12767296]
[1766770357606,0.71,122.15,122.12,19.31620069]
[1766770357802,0.71,122.16,122.12,21.72946995]
[1766770358426,0.71,122.16,122.12,19.31620069]
[1766770359744,0.71,122.17,122.13,0.69]
[1766770361172,0.71,122.17,122.13,8.87776448]
[1766770361669,0.71,122.16,122.13,8.87776448]
[1766770373649,128.89767296,122.21,122.14,0.69]
[1766770373650,2.41326926,122.19,122.14,0.69]
[1766770373977,0.71,122.18,122.14,0.69]
[1766770374164,0.71,122.18,122.15,0.69]
[1766770374858,0.71,122.18,122.15,8.87656222]
[1766770375460,0.71,122.18,122.14,8.87714444]
[1766770377482,0.71,122.18,122.15,0.69]
[1766770378077,0.71,122.18,122.14,23.83714444]
[1766770378673,0.71,122.2,122.16,4.4605806]
[1766770378878,0.71,122.2,122.16,0.69]
[1766770379090,0.71,122.19,122.16,0.69]
[1766770379397,0.71,122.19,122.15,11.95678215]
[1766770379398,0.71,122.19,122.15,12.64678215]
[1766770379972,0.71,122.19,122.15,8.87620155]
[1766770380174,0.71,122.18,122.14,23.14712672]
[1766770380572,0.71,122.18,122.14,23.83712672]
[1766770381078,0.71,122.18,122.14,23.14712672]
[1766770381279,0.71,122.18,122.15,0.69]
[1766770381775,3.7705806,122.18,122.14,14.96]
[1766770381978,0.71,122.17,122.14,14.96]
[1766770382181,0.71,122.17,122.14,23.83731546]
[1766770383191,3.7705806,122.17,122.15,0.69]
[1766770383386,3.7705806,122.16,122.14,14.96]
[1766770383696,4.4805806,122.17,122.14,15.65]
[1766770384591,4.4805806,122.17,122.14,23.83725905]
[1766770384592,0.71,122.17,122.14,23.83725905]
[1766770384896,10.43767296,122.21,122.14,23.14725905]
[1766770385093,10.43767296,122.21,122.15,0.69]
[1766770385094,0.71,122.18,122.15,0.69]
[1766770385269,4.4805806,122.18,122.15,0.69]
[1766770385687,0.71,122.19,122.15,0.69]
[1766770386075,4.4805806,122.19,122.15,0.69]
[1766770386471,0.71,122.21,122.16,0.69]
[1766770386690,0.71,122.2,122.17,0.69]
[1766770388486,4.4805806,122.2,122.17,0.69]
[1766770388688,0.71,122.2,122.16,8.87596253]
[1766770388891,4.4805806,122.2,122.16,8.87596253]
[1766770389305,3.7705806,122.18,122.16,0.69]
[1766770389500,4.4805806,122.19,122.16,0.69]
[1766770390073,4.4805806,122.19,122.15,8.18660524]
[1766770390306,0.71,122.18,122.15,8.87660524]
[1766770390895,3.7705806,122.22,122.14,23.14723147]
[1766770390896,4.4805806,122.17,122.14,23.14723147]
[1766770391198,4.4805806,122.18,122.15,0.69]
[1766770391406,0.71,122.17,122.14,23.83723147]
[1766770392526,4.4805806,122.18,122.15,0.69]
[1766770392821,4.4805806,122.18,122.14,23.83723147]
[1766770393197,3.7705806,122.22,122.14,23.83723147]
[1766770393397,0.71,122.21,122.14,23.83723147]
[1766770393597,0.71,122.17,122.14,23.83723147]
[1766770396003,0.68,122.16,122.14,14.96]
[1766770396207,3.7705806,122.17,122.14,14.96]
[1766770396715,3.7705806,122.17,122.14,15.63]
[1766770397320,3.7705806,122.17,122.13,61.97]
[1766770398300,4.4505806,122.17,122.13,0.67]
[1766770398495,0.68,122.17,122.13,0.67]
[1766770398722,4.4505806,122.17,122.14,0.67]
[1766770400726,3.7705806,122.19,122.14,4.4405806]
[1766770401024,4.4505806,122.18,122.15,0.67]
[1766770401225,0.68,122.17,122.15,0.67]
[1766770401529,0.68,122.17,122.14,0.67]
[1766770402605,0.68,122.17,122.14,8.85712284]
[1766770403008,0.68,122.21,122.15,0.67]
[1766770403216,0.68,122.19,122.15,0.67]
[1766770403530,4.4505806,122.19,122.15,15.63]
[1766770404010,0.68,122.18,122.15,15.63]
[1766770404211,4.4505806,122.19,122.16,0.67]
[1766770405230,25.43767296,122.23,122.17,0.67]
[1766770405231,0.68,122.2,122.17,0.67]
[1766770405428,4.4505806,122.2,122.17,0.67]
[1766770405728,0.68,122.19,122.16,8.18569319]
[1766770405919,4.4505806,122.19,122.16,0.67]
[1766770406313,3.7705806,122.19,122.16,0.67]
[1766770406517,4.4505806,122.19,122.16,0.67]
[1766770407330,0.68,122.18,122.15,23.14639104]
[1766770407531,0.68,122.18,122.15,23.81639104]
[1766770408532,4.4505806,122.19,122.16,0.67]
[1766770410532,3.7705806,122.19,122.16,0.67]
[1766770410711,0.68,122.18,122.16,0.67]
[1766770412534,4.4505806,122.18,122.15,23.14639104]
[1766770412834,4.4505806,122.16,122.13,15.63]
[1766770413211,4.4505806,122.16,122.13,23.81793904]
[1766770414021,4.4505806,122.17,122.14,0.67]
[1766770415919,3.7705806,122.18,122.15,0.67]
[1766770416221,4.4505806,122.19,122.15,0.67]
[1766770416943,4.4505806,122.19,122.16,0.67]
[1766770419426,143.89767296,122.23,122.16,0.67]
[1766770419427,3.7705806,122.21,122.17,0.67]
[1766770419637,4.4505806,122.21,122.17,0.67]
[1766770420222,4.4505806,122.21,122.18,0.67]
[1766770421335,4.4505806,122.21,122.17,8.85525796]
[1766770423043,3.7705806,122.2,122.17,8.85525796]
[1766770424836,4.4305806,122.19,122.16,23.84576114]
[1766770425051,4.4305806,122.18,122.16,23.84576114]
[1766770425351,3.7705806,122.22,122.16,23.84576114]
[1766770425352,3.7705806,122.19,122.16,15.66]
[1766770425930,3.7705806,122.19,122.16,23.84583555]
[1766770426820,3.7705806,122.19,122.16,23.14583555]
[1766770427022,3.7705806,122.19,122.17,0.7]
[1766770427948,3.7705806,122.19,122.16,23.14571066]
[1766770428153,3.7705806,122.19,122.16,23.84571066]
[1766770428835,0.66,122.2,122.17,8.18512698]
[1766770429155,4.4305806,122.2,122.17,8.88512698]
[1766770429644,0.66,122.2,122.17,8.88512698]
[1766770429851,4.4305806,122.2,122.17,8.88512698]
[1766770430051,4.4305806,122.2,122.17,0.7]
[1766770430352,4.4305806,122.19,122.16,23.84577404]
[1766770431358,3.7705806,122.2,122.17,0.7]
[1766770431544,4.4305806,122.2,122.17,0.7]
[1766770432451,3.7705806,122.19,122.17,0.7]
[1766770432961,4.4305806,122.19,122.16,23.84577404]
[1766770433854,0.66,122.19,122.16,23.84577404]
[1766770434053,4.4305806,122.19,122.16,23.84577404]
[1766770434248,3.7705806,122.19,122.16,23.14577404]
[1766770434460,4.4305806,122.2,122.17,8.88530775]
[1766770434641,3.7705806,122.19,122.17,8.88530775]
[1766770434956,4.4305806,122.2,122.17,8.88530775]
[1766770435359,4.4305806,122.2,122.17,0.7]
[1766770437760,4.4305806,122.2,122.17,8.88530886]
[1766770439657,3.7705806,122.2,122.17,8.88530886]
[1766770439862,0.66,122.2,122.17,8.88530886]
[1766770441162,3.07216796,122.2,122.17,8.88530886]
[1766770441740,3.07216796,122.19,122.16,23.84571629]
[1766770442238,2.41216796,122.19,122.17,0.7]
[1766770442639,2.41216796,122.2,122.17,0.7]
[1766770442844,3.07216796,122.2,122.17,0.7]
[1766770443444,2.41216796,122.19,122.17,0.7]
[1766770443847,2.41216796,122.2,122.17,0.7]
[1766770444039,3.07216796,122.2,122.17,0.7]
[1766770448549,0.66,122.19,122.15,11.95633853]
[1766770448751,2.41216796,122.19,122.16,0.7]
[1766770449048,3.07216796,122.21,122.17,0.7]
[1766770449242,0.66,122.2,122.17,0.7]
[1766770449566,3.07216796,122.21,122.17,0.7]
[1766770449764,15.0,122.23,122.17,0.7]
[1766770449948,0.66,122.23,122.18,0.7]
[1766770450266,40.39767296,122.25,122.18,0.7]
[1766770450267,3.07216796,122.22,122.18,0.7]
[1766770451371,2.41216796,122.21,122.18,0.7]
[1766770452466,40.39767296,122.25,122.18,8.18449834]
[1766770452467,25.43767296,122.25,122.18,8.18449834]
[1766770452658,0.66,122.23,122.2,0.7]
[1766770453650,0.66,122.23,122.2,8.88321145]
[1766770455148,2.41216796,122.23,122.19,0.81839757]
[1766770455354,2.41216796,122.2,122.17,15.68]
[1766770455557,2.41216796,122.2,122.18,0.72]
[1766770456763,2.97216796,122.21,122.18,0.72]
[1766770456957,0.56,122.24,122.18,8.1845336]
[1766770457268,2.97216796,122.21,122.18,8.9045336]
[1766770457475,2.97216796,122.21,122.18,0.72]
[1766770457973,2.97216796,122.2,122.17,23.86502368]
[1766770458162,2.41216796,122.2,122.18,0.72]
[1766770459074,2.41216796,122.2,122.17,14.96]
[1766770459377,2.97216796,122.19,122.17,14.96]
[1766770459564,2.97216796,122.19,122.16,0.72]
[1766770461478,2.97216796,122.18,122.15,34.30406303]
[1766770462672,2.41216796,122.18,122.16,0.72]
[1766770463070,2.97216796,122.18,122.15,26.11767296]
[1766770464674,0.56,122.18,122.15,26.11767296]
[1766770464881,2.97216796,122.18,122.15,26.11767296]
[1766770465793,2.41216796,122.17,122.15,14.96]
[1766770465980,0.56,122.18,122.15,14.96]
[1766770466181,2.41216796,122.17,122.15,14.96]
[1766770466382,2.97216796,122.17,122.15,14.96]
[1766770467395,2.41216796,122.16,122.12,0.72]
[1766770467593,15.0,122.18,122.12,0.72]
[1766770467594,2.41216796,122.14,122.12,0.72]
[1766770467789,0.56,122.15,122.12,0.72]
[1766770467790,2.97216796,122.15,122.12,0.72]
[1766770468189,0.56,122.15,122.12,0.72]
[1766770468391,2.97216796,122.15,122.12,0.72]
[1766770469283,2.41216796,122.14,122.12,0.72]
[1766770469886,15.0,122.18,122.11,8.38894283]
[1766770469887,2.97216796,122.13,122.11,0.2]
[1766770470190,2.41216796,122.12,122.11,0.2]
[1766770471475,0.56,122.13,122.11,0.2]
[1766770471676,0.56,122.11,122.08,25.39767296]
[1766770471990,0.56,122.1,122.06,0.2]
[1766770472304,2.97216796,122.1,122.07,0.72]
[1766770472604,2.97216796,122.1,122.07,11.15767296]
[1766770473099,2.97216796,122.1,122.07,0.72]
[1766770473481,2.97216796,122.11,122.07,0.72]
[1766770473688,2.41216796,122.1,122.07,0.72]
[1766770475302,2.41216796,122.09,122.07,0.72]
[1766770475993,2.97216796,122.08,122.06,15.16]
[1766770476207,2.41216796,122.07,122.06,0.2]
[1766770476587,15.0,122.12,122.06,0.2]
[1766770476903,2.41216796,122.08,122.06,0.2]
[1766770477577,0.56,122.08,122.06,0.2]
[1766770478098,2.97216796,122.08,122.06,0.2]
[1766770480302,2.41216796,122.07,122.04,15.88]
[1766770480686,2.97216796,122.07,122.04,0.92]
[1766770481604,0.56,122.09,122.04,0.92]
[1766770481799,2.41216796,122.07,122.04,0.92]
[1766770482392,2.97216796,122.06,122.04,0.2]
[1766770483495,2.41216796,122.05,122.04,0.2]
[1766770483804,2.97216796,122.05,122.03,0.2]
[1766770484194,0.56,122.05,122.03,0.2]
[1766770484413,2.41216796,122.05,122.03,0.2]
[1766770486697,2.97216796,122.04,122.03,0.2]
[1766770486902,2.97216796,122.04,122.02,0.2]
[1766770487790,2.41216796,122.03,122.02,0.2]
[1766770488117,2.97216796,122.04,122.02,0.2]
[1766770488493,2.41216796,122.03,122.01,0.2]
[1766770488805,2.97216796,122.02,122.01,0.2]
[1766770489010,2.41216796,122.02,122.01,0.2]
[1766770490000,2.97216796,122.03,122.01,0.2]
[1766770490605,2.41216796,122.02,122.01,0.2]
[1766770492917,2.41216796,122.02,121.99,0.87]
[1766770493099,0.56,122.03,121.99,0.87]
[1766770493300,2.41216796,122.02,121.99,0.87]
[1766770494011,2.41216796,122.02,121.99,8.3973771]
[1766770494195,2.41216796,122.02,122.0,0.67]
[1766770494396,0.56,122.03,122.0,0.67]
[1766770494597,2.41216796,122.01,121.98,0.2]
[1766770494813,0.56,121.99,121.96,0.87]
[1766770495014,2.41216796,121.99,121.97,0.67]
[1766770495218,2.41216796,122.02,121.98,0.67]
[1766770495423,2.41216796,122.01,121.98,0.67]
[1766770496203,2.41216796,122.01,121.98,8.19784503]
[1766770496410,2.97216796,122.02,121.99,0.67]
[1766770496832,24.62346616,122.19,121.99,0.67]
[1766770496833,15.0,122.08,122.0,0.67]
[1766770497133,2.97216796,122.08,122.04,0.67]
[1766770497305,2.41216796,122.07,122.04,0.67]
[1766770497621,2.97216796,122.08,122.04,0.67]
[1766770497828,2.41216796,122.07,122.04,0.67]
[1766770498118,2.97216796,122.08,122.04,0.67]
[1766770498320,2.41216796,122.07,122.04,0.67]
[1766770499025,2.97216796,122.08,122.04,0.67]
[1766770499222,0.56,122.08,122.04,0.67]
[1766770499427,2.97216796,122.08,122.04,0.67]
[1766770500016,4.33690913,122.08,122.04,0.67]
[1766770500226,0.56,122.07,122.03,10.43767296]
[1766770500528,0.56,122.03,122.0,0.67]
[1766770500731,3.77690913,122.02,121.99,0.67]
[1766770501026,4.33690913,122.03,121.99,0.67]
[1766770501204,4.33690913,122.04,121.99,0.67]
[1766770501531,4.33690913,122.04,122.0,0.67]
[1766770501727,4.33690913,122.05,122.01,0.67]
[1766770502226,0.56,122.07,122.02,0.67]
[1766770502526,4.33690913,122.08,122.03,0.67]
[1766770502711,103.5,122.09,122.04,0.67]
[1766770502712,104.06,122.09,122.04,0.67]
[1766770503026,4.33690913,122.08,122.04,0.67]
[1766770503616,3.77690913,122.07,122.04,0.67]
[1766770505023,0.56,122.08,122.04,0.67]
[1766770505222,3.77690913,122.07,122.04,0.67]
[1766770506644,3.77690913,122.06,122.02,0.81953778]
[1766770506846,4.33690913,122.06,122.02,0.67]
[1766770507032,3.77690913,122.07,122.03,0.67]
[1766770507440,4.33690913,122.07,122.03,0.67]
[1766770508225,3.77690913,122.06,122.03,0.67]
[1766770508831,4.33690913,122.07,122.03,0.67]
[1766770509144,3.77690913,122.06,122.03,0.67]
[1766770510142,4.33690913,122.06,122.03,0.67]
[1766770511725,0.56,122.06,122.03,0.67]
[1766770511926,4.33690913,122.06,122.03,0.67]
[1766770513043,0.56,122.03,121.98,23.1776733]
[1766770513348,4.33690913,122.03,121.99,0.67]
[1766770513524,0.56,122.05,121.99,0.67]
[1766770513725,3.77690913,122.04,122.01,0.67]
[1766770514725,0.56,122.05,122.01,0.67]
[1766770514930,3.77690913,122.04,122.01,0.67]
[1766770515549,4.33690913,122.05,122.01,0.67]
[1766770516128,3.77690913,122.04,122.01,0.67]
[1766770516950,3.77690913,122.03,122.0,8.19663232]
[1766770517140,0.56,122.03,122.0,8.87663232]
[1766770517342,0.56,122.05,122.01,0.68]
[1766770517529,4.33690913,122.04,122.01,0.68]
[1766770519059,3.77690913,122.03,122.01,0.68]
[1766770520049,0.56,122.06,122.01,0.68]
[1766770520255,3.77690913,122.04,122.01,0.68]
[1766770520753,3.77690913,122.03,122.01,0.68]
[1766770521731,0.56,122.05,122.01,0.68]
[1766770521965,3.77690913,122.04,122.01,0.68]
[1766770523641,0.56,122.05,122.01,0.68]
[1766770523842,3.77690913,122.04,122.01,0.68]
[1766770524050,0.56,122.05,122.01,8.87600771]
[1766770524247,3.77690913,122.04,122.01,8.87600771]
[1766770524550,3.77690913,122.04,122.02,0.68]
[1766770524753,0.56,122.07,122.02,0.68]
[1766770525150,4.33690913,122.07,122.02,0.68]
[1766770525450,3.77690913,122.07,122.02,0.68]
[1766770525651,4.33690913,122.08,122.03,0.68]
[1766770525859,3.77690913,122.07,122.03,0.68]
[1766770526554,4.33690913,122.07,122.03,0.68]
[1766770526855,0.56,122.07,122.03,8.19460131]
[1766770527159,3.77690913,122.06,122.03,0.68]
[1766770528659,3.77690913,122.07,122.04,0.68]
[1766770528860,0.56,122.07,122.04,0.68]
[1766770529045,3.77690913,122.06,122.04,0.68]
[1766770529540,3.77690913,122.06,122.03,0.68]
[1766770535538,3.77690913,122.04,122.01,23.85574957]
[1766770535751,3.77690913,122.03,122.01,0.68]
[1766770535951,4.33690913,122.02,121.99,15.66]
[1766770536149,3.77690913,122.0,121.98,8.87806524]
[1766770536358,3.77690913,122.01,121.98,8.87806524]
[1766770536557,3.77690913,122.01,121.98,8.19806524]
[1766770536759,3.77690913,122.01,121.99,0.68]
[1766770539152,3.77690913,122.0,121.98,0.68]
[1766770539469,3.77690913,122.0,121.97,23.17851587]
[1766770539470,3.77690913,122.0,121.97,14.98]
[1766770539646,3.77690913,121.99,121.97,10.43767296]
[1766770540171,3.77690913,121.99,121.97,11.11767296]
[1766770540548,0.56,122.02,121.97,0.68]
[1766770540754,3.77690913,122.0,121.97,0.68]
[1766770541154,3.77690913,121.98,121.96,0.88]
[1766770543969,3.77690913,121.98,121.96,0.2]
[1766770544505,3.77690913,121.97,121.95,0.67]
[1766770544664,3.77690913,121.96,121.94,0.67]
[1766770544862,0.56,121.98,121.94,0.67]
[1766770545062,3.77690913,121.97,121.94,0.67]
[1766770545270,4.33690913,121.97,121.94,0.67]
[1766770545680,3.77690913,121.96,121.94,0.67]
[1766770547168,3.77690913,121.95,121.93,0.2]
[1766770547476,4.33690913,121.95,121.93,0.2]
[1766770548262,3.77690913,121.95,121.93,0.2]
[1766770548686,4.33690913,121.95,121.93,0.2]
[1766770549366,0.56,121.95,121.93,0.2]
[1766770549877,4.33690913,121.95,121.93,0.2]
[1766770550072,0.56,121.95,121.93,0.2]
[1766770550278,4.33690913,121.95,121.93,0.2]
[1766770552568,3.77690913,121.95,121.93,0.2]
[1766770553581,0.56,121.96,121.93,0.2]
[1766770554083,3.77690913,121.95,121.93,0.2]
[1766770557290,3.77690913,121.95,121.93,0.87]
[1766770558992,3.77690913,121.97,121.94,0.67]
[1766770559197,0.56,121.99,121.94,0.67]
[1766770559695,3.77690913,121.98,121.94,0.67]
[1766770559893,3.77690913,121.97,121.94,0.67]
[1766770560800,3.77690913,121.97,121.94,8.20053522]
[1766770561100,3.77690913,121.97,121.95,0.67]
[1766770562010,2.42154192,121.97,121.95,0.67]
[1766770562904,2.42154192,121.97,121.95,8.87006721]
[1766770563280,2.42154192,121.97,121.95,0.67]
[1766770564709,2.42154192,121.96,121.95,0.67]
[1766770568514,2.42154192,121.98,121.95,0.67]
[1766770568806,10.43767296,122.0,121.95,0.67]
[1766770569010,2.42154192,122.0,121.96,0.67]
[1766770570096,2.42154192,122.0,121.96,8.19934192]
[1766770570414,2.42154192,121.98,121.96,0.67]
[1766770570612,0.56,122.02,121.95,0.67]
[1766770570820,2.42154192,121.99,121.95,0.67]
[1766770571131,2.42154192,121.98,121.95,0.67]
[1766770571424,2.42154192,121.98,121.96,0.67]
[1766770572115,2.42154192,121.99,121.96,0.67]
[1766770572905,0.56,122.0,121.96,0.67]
[1766770573102,2.42154192,121.99,121.97,0.67]
[1766770576024,2.42154192,121.99,121.97,8.86864954]
[1766770576229,2.42154192,122.0,121.97,8.86864954]
[1766770576912,2.42154192,122.0,121.98,0.66]
[1766770578530,113.93767296,122.03,121.98,0.66]
[1766770578705,2.42154192,122.04,121.99,0.66]
[1766770578915,2.42154192,122.05,122.01,0.66]
[1766770579334,2.98154192,122.06,122.01,0.66]
[1766770579734,2.42154192,122.05,122.01,0.66]
[1766770580722,2.42154192,122.05,122.02,0.66]
[1766770582015,0.56,122.06,122.02,0.66]
[1766770582528,2.42154192,122.05,122.02,0.66]
[1766770584048,2.98154192,122.03,122.0,14.98]
[1766770584631,2.98154192,122.03,122.0,15.64]
[1766770585045,2.42154192,122.03,122.0,15.64]
[1766770585246,2.42154192,122.02,121.99,0.66]
[1766770585412,2.98154192,122.02,121.99,0.66]
[1766770586125,2.42154192,122.02,121.99,0.66]
[1766770588127,2.42154192,122.02,121.99,8.85739164]
[1766770588530,0.56,122.03,122.0,0.66]
[1766770589039,2.98154192,122.03,122.0,0.66]
[1766770590322,0.56,122.07,122.01,0.66]
[1766770590638,2.98154192,122.06,122.01,0.66]
[1766770591645,2.98154192,122.06,122.02,0.66]
[1766770592220,2.42154192,122.05,122.02,0.66]
[1766770592420,2.98154192,122.06,122.02,0.66]
[1766770594050,0.56,122.07,122.03,0.66]
[1766770594225,2.42154192,122.06,122.03,0.66]
[1766770595632,2.98154192,122.06,122.03,0.66]
[1766770597058,0.56,122.08,122.04,0.66]
[1766770597240,114.69767296,122.09,122.04,0.66]
[1766770597847,2.42154192,122.08,122.04,0.66]
[1766770598228,2.98154192,122.08,122.05,0.66]
[1766770599830,103.7,122.09,122.05,8.19326192]
[1766770600030,103.7,122.09,122.06,0.66]
[1766770600031,0.2,122.09,122.06,0.66]
[1766770601029,0.2,122.09,122.06,18.62995684]
[1766770601347,0.2,122.09,122.07,0.66]
[1766770602151,3.18154192,122.09,122.06,10.43767296]
[1766770602345,3.18154192,122.09,122.06,11.09767296]
[1766770604745,3.18154192,122.09,122.06,0.66]
[1766770604746,2.42154192,122.08,122.06,0.66]
[1766770604951,2.42154192,122.08,122.05,8.89325425]
[1766770605333,3.18154192,122.09,122.05,8.89325425]
[1766770605927,3.18154192,122.09,122.06,0.7]
[1766770606646,0.2,122.09,122.06,0.7]
[1766770607446,0.2,122.09,122.07,0.7]
[1766770608854,1e-08,122.09,122.07,0.7]
[1766770609752,1e-08,122.09,122.08,8.89134993]
[1766770611665,1e-08,122.09,122.08,8.19134993]
[1766770613763,1e-08,122.09,122.08,8.89134993]
[1766770614458,1e-08,122.09,122.08,0.7]
[1766770616741,1e-08,122.09,122.08,8.89134993]
[1766770617771,1e-08,122.09,122.08,0.7]
[1766770618774,1e-08,122.09,122.08,8.89134993]
[1766770622369,1e-08,122.09,122.08,0.7]
[1766770623159,1e-08,122.09,122.08,8.89134993]
[1766770625577,1e-08,122.09,122.08,0.7]
[1766770625781,3.77404784,122.09,122.07,8.19194241]
[1766770625964,1e-08,122.09,122.08,8.89134993]